Cogmind - Beta 16 @@@ ROGUE MODE // 2025.11.25 @ 21:13:02 Player: Jaegerschnitzel Result: Destroyed by L-31 Rogue with Katana Performance ------------- Evolutions (1) 500 Regions Visited (2) 400 Robots Destroyed (31) 155 Value Destroyed (586) 586 Prototype IDs (0) 0 Alien Tech Used (0) 0 Bonus (4) 4 TOTAL SCORE: 1645 Bonus ------- High Alert Combat Kills 4 Cogmind --------- Core Integrity 0/400 Matter 81/300 Energy 15/100 System Corruption 0% Temperature Cool (0) Movement Core (150) Ox2 Location -9/Materials Parts ------- > --- POWER (1) -------- (None) > --- PROPULSION (2) --- (None) > --- UTILITY (4) ------ Small Storage Unit Seismic Detector > --- WEAPON (2) ------- Light Assault Rifle > --- INVENTORY (8) ---- Light Ion Engine Rocket Launcher Peak State ------------ > --- POWER ------------ Light Ion Engine > --- PROPULSION ------- Hover Unit Improved Hover Unit > --- UTILITY ---------- Heat Sink Visual Processing Unit Seismic Detector ECM Suite > --- WEAPON ----------- Heavy EM Pulse Gun Light Cannon > --- INVENTORY -------- Light Ion Engine Rocket Launcher Rocket Launcher Rocket Launcher [Rating: 12] Favorites ----------- Power Light Ion Engine Engine Light Ion Engine Propulsion Aluminum Leg Treads Light Treads Leg Aluminum Leg Hover Unit Improved Hover Unit Utility ECM Suite Device ECM Suite Storage Small Storage Unit Processor Visual Processing Unit Protection Weapon Shielding Weapon Light Cannon Energy Gun Heavy EM Pulse Gun Ballistic Gun Assault Rifle Ballistic Cannon Light Cannon Launcher Rocket Launcher Build | -11 -10 -9 ------- Run | Yrd Mat Mat Slots Evolved 2 | . . 2 Power . | . . . Propulsion . | . . . Utility 2 | . . 2 Weapon . | . . . Parts Attached 29 | 5 8 16 Power 4 | 1 . 3 Engine 4 | 1 . 3 Core . | . . . Reactor . | . . . Propulsion 7 | 2 1 4 Treads 2 | . . 2 Leg 3 | 2 1 . Wheel . | . . . Hover 2 | . . 2 Flight . | . . . Utility 10 | . 5 5 Device 4 | . 2 2 Storage 3 | . 2 1 Processor 2 | . 1 1 Hackware . | . . . Protection 1 | . . 1 Artifact . | . . . Weapon 8 | 2 2 4 Energy Gun 3 | 2 . 1 Energy Cannon . | . . . Ballistic Gun 2 | . . 2 Ballistic Cannon 2 | . 2 . Launcher 1 | . . 1 Special Weapon . | . . . Impact Weapon . | . . . Slashing Weapon . | . . . Piercing Weapon . | . . . Special Melee Weapon . | . . . Unidentified Prototypes . | . . . Parts Lost 10 | . 1 9 Power 1 | . . 1 Propulsion 2 | . . 2 Utility 2 | . . 2 Weapon 5 | . 1 4 Highest Loss Streak 7 | . 1 7 To Critical Strikes . | . . . Average Backups 3 | 1 3 3 Power . | . . . Propulsion . | . . . Utility . | . 1 . Weapon 2 | . . 3 Tool/Special . | . . . Unused Backups 5 | . . 5 Power 1 | . . 1 Propulsion . | . . . Utility . | . . . Weapon 4 | . . 4 Tool/Special . | . . . Average Slot Usage (%) 85 | . 95 83 Engine 11 | . 14 10 Treads 3 | . . 4 Leg 7 | . 28 3 Hover 4 | . . 4 Device 26 | . 13 29 Storage 1 | . 3 . Processor 7 | . 7 7 Protection 2 | . . 3 Energy Gun 4 | . 11 2 Ballistic Gun 2 | . . 2 Ballistic Cannon 12 | . 16 11 Peak Build Rating 12 | 5 7 12 Average Rating 8 | 4 6 9 On Entrance 3 | . 5 6 Avg Prop Armor Cover (%) . | . . . Naked Turns . | . . . Heaviest Build 91 | 6 91 23 Greatest Support 40 | 20 20 40 Greatest Overweight (x) 4 | . 4 4 Average Overweight (x) . | . . 1 Largest Inventory Capacity 25 | 5 25 8 Average Capacity 5 | 5 6 5 Most Carried 5 | 2 5 5 Average Carried 3 | 1 3 3 Final Capacity 8 | 5 5 8 Final Carried 4 | 2 4 2 Class Distribution -------------------- 85% | Mutant 14% | Scavenger-Mutant Dominant Class ---------------- Mutant | -10/Materials Mutant | -9/Materials Resources | -11 -10 -9 ----------- Run | Yrd Mat Mat Matter Collected 807 | 250 210 347 Remotely . | . . . Salvage Created 578 | 46 71 461 Parts 46 | 2 6 38 Haulers Intercepted 1 | . . 1 Recyclers Shooed 1 | . . 1 Parts Field Recycled . | . . . Retrieved Matter . | . . . Parts Self-Destructed . | . . . Prevented . | . . . Parts Restored . | . . . Kills | -11 -10 -9 ------- Run | Yrd Mat Mat Combat Hostiles Destroyed 24 | 1 5 18 Guns 8 | 1 3 4 Cannons 6 | . 2 4 AOE 10 | . . 10 Classes Destroyed 8 | 1 1 6 Builder 2 | . . 2 Tunneler 1 | . . 1 Hauler 1 | . . 1 Recycler 1 | . . 1 Watcher 2 | . . 2 Swarmer 15 | . 3 12 Grunt 6 | 1 2 3 Sentry 3 | . . 3 Best Kill Streak 13 | 1 3 13 Combat Bots Only 8 | 1 3 8 Max Kills in Single Turn 3 | 1 1 3 Gunslinging . | . . . Exploded 3 | . . 3 Melee . | . . . Uniques/NPCs Destroyed . | . . . Combat | -11 -10 -9 -------- Run | Yrd Mat Mat Hostile Shots Fired 239 | 2 60 177 Missed 72 | . 14 58 Hits 167 | 2 46 119 Melee 10 | . . 10 Projectile 157 | 2 46 109 Critical Strikes 5 | . . 5 Damage Taken 1940 | 20 425 1495 Core 500 | 10 83 407 Absorbed by Shields . | . . . Redirected to Shielding 36 | . . 36 Regen/Repaired (Parts) 243 | . . 243 Core Remaining (%) 79 | 96 62 . Volleys Fired 64 | 2 21 41 Largest 2 | 2 2 2 Hottest 80 | 80 80 75 Shots Fired 121 | 4 42 75 Gun 39 | 4 14 21 Cannon 72 | . 28 44 Launcher 10 | . . 10 Special . | . . . Kinetic 84 | . 28 56 Thermal 13 | 2 11 . Explosive 10 | . . 10 Electromagnetic 14 | 2 3 9 Robot Hit Streak 5 | 3 4 5 Robot Miss Streak 8 | 1 4 8 Penetration Max . | . . . Secondary Targets . | . . . Shots Hit Robots 56 | 3 19 34 Core Hits 40 | 2 6 32 Critical Kills . | . . . Critical Parts Destroyed . | . . . Critical Strikes 5 | . . 5 Blast 5 | . . 5 Melee Attacks . | . . . Impact . | . . . Slashing . | . . . Piercing . | . . . Sneak Attacks . | . . . Combat Hostiles . | . . . Follow-up Attacks . | . . . Damage Inflicted 1909 | 34 327 1548 Guns 304 | 34 57 213 Cannons 579 | . 258 321 Explosions 997 | . . 997 Melee . | . . . Ramming 29 | . 12 17 Kinetic 693 | . 258 435 Thermal 309 | 22 46 241 Explosive 756 | . . 756 Electromagnetic 122 | 12 11 99 Impact . | . . . Slashing . | . . . Piercing . | . . . Highest Corruption . | . . . Average Corruption . | . . . Corruption Purged . | . . . Corruption Blocked . | . . . Overload Shots . | . . . Overflow Damage 41 | . . 41 Projectiles . | . . . Explosions 41 | . . 41 Melee . | . . . Knockbacks 8 | . 5 3 Impact 1 | . 1 . Kinetic 7 | . 4 3 Secondary . | . . . Self-Inflicted Damage 4 | . . 4 Shots . | . . . Rammed 3 | . . 3 Targets Rammed 10 | . 3 7 Kicked 7 | . 3 4 Crushed . | . . . Highest Temperature 54 | 48 54 44 Average Temperature 20 | 28 17 24 Received Heat Transfer 375 | 12 84 279 Siege Activations . | . . . Martial Activations . | . . . Shielding Activations . | . . . Robots Disrupted . | . . . Combat Hostiles . | . . . Robots Corrupted . | . . . Combat Hostiles . | . . . Parts Fried . | . . . Impact Corruptions . | . . . Robots Melted . | . . . Combat Hostiles . | . . . Parts Melted . | . . . Heat Transferred 300 | 50 100 150 Parts Sabotaged . | . . . Parts Stolen . | . . . Parts Stripped . | . . . Power Chain Reactions . | . . . Alert | -11 -10 -9 ------- Run | Yrd Mat Mat Maximum Alert Level 2 | . . 2 Low Security (%) 95 | 100 100 94 Level 1 3 | . . 4 Level 2 1 | . . 1 Level 3 . | . . . Level 4 . | . . . Level 5 . | . . . High Security . | . . . Max Security . | . . . Peak Influence 408 | 20 80 408 Initial 14 | . . 14 Average 27 | 2 28 30 Influence Increases 779 | 20 145 614 Destroy 0b10 Robot/C 480 | 20 100 360 Destroy 0b10 Robot/NC 35 | . . 35 Destroy Leader 76 | . 20 56 Successful Hack 35 | . 25 10 Disable Machine 60 | . . 60 Destroy Structure 93 | . . 93 Influence Decreases 417 | 20 110 287 Entered New Map 21 | . . 21 Time Decay 306 | 20 110 176 Lost Part 90 | . . 90 Squads Dispatched 2 | . 2 . Investigation 1 | . 1 . Extermination . | . . . Reinforcement 1 | . 1 . Assault . | . . . Garrison . | . . . Intercept . | . . . Searches Triggered . | . . . Construction Impeded . | . . . Haulers Reinforced . | . . . Active Scanning Responses . | . . . Cargo Convoy Interrupts . | . . . Stealth | -11 -10 -9 --------- Run | Yrd Mat Mat Distress Signals 3 | . 1 2 Communications Jammed . | . . . Distress Signals . | . . . Times Spotted 41 | 1 12 28 Peak Tracking Total 7 | 1 5 7 Tactical Retreats 6 | . 3 3 ECM-based Alert Blocks 9 | . 5 4 Traps | -11 -10 -9 ------- Run | Yrd Mat Mat Traps Triggered . | . . . Indirectly . | . . . Trap Hack Attempts . | . . . Triggered . | . . . Disarmed . | . . . Reprogrammed . | . . . Reused . | . . . Traps Extracted . | . . . Installed . | . . . Triggered . | . . . Machines | -11 -10 -9 ---------- Run | Yrd Mat Mat Machines Disabled 4 | . . 4 Max in Single Turn 2 | . . 2 Machines Repaired . | . . . Machines Dismantled . | . . . Machines Sabotaged . | . . . Overloaded Fab Kills . | . . . Hacking | -11 -10 -9 --------- Run | Yrd Mat Mat Machines Accessed 5 | . 2 3 Terminals 4 | . 2 2 Fabricators . | . . . Repair Stations 1 | . . 1 Recycling Units . | . . . Scanalyzers . | . . . Garrison Access . | . . . Total Hacks 27 | . 7 20 Successful 15 | . 3 12 Failed 12 | . 4 8 Catastrophic 3 | . 2 1 Database Lockouts . | . . . Manual 6 | . 4 2 Terminals 11 | . 7 4 Fabricators . | . . . Repair Stations 16 | . . 16 Recycling Units . | . . . Scanalyzers . | . . . Garrison Access . | . . . Terminal Hacks 3 | . 3 . Record 1 | . 1 . Part Schematic 1 | . 1 . Zone Layout 1 | . 1 . Fabricator Hacks . | . . . Repair Station Hacks 12 | . . 12 Scan Component 6 | . . 6 Repair 6 | . . 6 Recycling Unit Hacks . | . . . Scanalyzer . | . . . Garrison Access Hacks . | . . . Unauthorized Hacks . | . . . Terminals . | . . . Fabricators . | . . . Repair Stations . | . . . Recycling Units . | . . . Scanalyzers . | . . . Garrison Access . | . . . Data Cores Recovered . | . . . Used . | . . . Hacking Detections 4 | . 2 2 Full Trace Events 2 | . 2 . Feedback Events . | . . . Feedback Blocked . | . . . Robot Schematics Acquired . | . . . Robots Built . | . . . Authchips . | . . . Time . | . . . Total Robot Build Rating . | . . . Part Schematics Acquired 1 | . 1 . Parts Built . | . . . Authchips . | . . . Time . | . . . Total Part Build Rating . | . . . Part Studies Acquired . | . . . Parts Repaired 6 | . . 6 Time 194 | . . 194 Parts Recycled . | . . . Recycled Matter . | . . . Retrieved Matter . | . . . Retrieved Components . | . . . Parts Scanalyzed . | . . . Part Schematics Acquired . | . . . Parts Damaged . | . . . Bothacking | -11 -10 -9 ------------ Run | Yrd Mat Mat Used RIF Installer . | . . . Robots Hacked . | . . . Non-combat . | . . . Combat . | . . . Robot Hacks Applied . | . . . Relay Couplers Released . | . . . Fabnet Peak Effective % . | . . . Robots Rewired . | . . . Allies Hacked . | . . . Hacks Repelled . | . . . Allies | -11 -10 -9 -------- Run | Yrd Mat Mat Total Allies . | . . . Largest Group . | . . . Highest-Rated Group . | . . . Highest-Rated Ally . | . . . Total Orders . | . . . Ally Attacks . | . . . Total Damage . | . . . Kills . | . . . Allies Corrupted . | . . . Allies Melted . | . . . Intel | -11 -10 -9 ------- Run | Yrd Mat Mat Active Infowar (turns) 1967 | . 298 1669 Optics 1146 | . . 1146 Seismic 1179 | . . 1179 ECM 1845 | . 298 1547 Robot Analysis Total . | . . . Derelict Logs Recovered . | . . . Drone Launches . | . . . Drone Recoveries . | . . . Exploration | -11 -10 -9 ------------- Run | Yrd Mat Mat Turns Passed 2215 | 208 335 1672 Spaces Moved 1108 | 82 193 833 Core 188 | 16 . 172 Treads 169 | . . 169 Legs 475 | 66 193 216 Wheels . | . . . Hover 276 | . . 276 Flight . | . . . Fastest Speed 50 | 50 120 56 Average Speed 147 | 106 127 156 Slowest Speed 400 | 120 400 250 Overloaded Moves . | . . . Propulsion Burnouts . | . . . Robots Hopped . | . . . Potential Cave-ins . | . . . Cave-ins Triggered . | . . . Exploration Rate (%) 22 | 9 31 28 Regions Visited 2 Branch Regions . Pre-discovered Areas . | . . . Known Exits Taken . | . . . Unknown Exits Taken 2 | 1 1 . Scrap Searched . | . . . Spaces Dug . | . . . Terrain Destroyed 89 | . . 89 Melee . | . . . Projectile . | . . . AOE 89 | . . 89 Terrain Rammed . | . . . Walls Destroyed . | . . . Machines Disabled . | . . . Actions | -11 -10 -9 --------- Run | Yrd Mat Mat Total 1583 | 199 244 1140 Wait 282 | 104 3 175 Move 1106 | 81 192 833 Hop . | . . . Pick Up 47 | 7 9 31 Fast Attach . | . . . Attach 39 | 5 8 26 Detach 12 | . 4 8 Swap 1 | . . 1 Drop 22 | . 4 18 Fire 64 | 2 21 41 Melee . | . . . Ram 3 | . . 3 Kick 7 | . 3 4 Crush . | . . . Escape Stasis . | . . . Rewire . | . . . Trap . | . . . Miscellaneous . | . . . Route ------- -11/Scrapyard -10/Materials -9/Materials History --------- Turn | Location | Event 2 | -11/Scrapyard | Met Revision 17 56 | -11/Scrapyard | Discovered new exit (range 8) 209 | -11/Scrapyard | Entered Materials 331 | -10/Materials | Build established: Mutant 459 | -10/Materials | Discovered new exit (range 16) 544 | -10/Materials | Entered another Materials area 544 | -9/Materials | Evolved 2 slots: Utility x2 766 | -9/Materials | Repaired Aluminum Leg? 942 | -9/Materials | Repaired Lgt. Cannon 1093 | -9/Materials | Repaired ECM Suite? 1373 | -9/Materials | Repaired Corrupted Imp. Ion Engine 1645 | -9/Materials | Repaired Corrupted Lgt. Treads? 1865 | -9/Materials | Repaired Corrupted Lgt. Treads 2119 | -9/Materials | Build established: Scavenger-Mutant 2191 | -9/Materials | Destroyed 8 combat bots 2203 | -9/Materials | Core integrity fell below 50% 2212 | -9/Materials | Core integrity fell below 20% 2216 | -9/Materials | Destroyed by L-31 Rogue with Katana Last Messages --------------- K-01 Serf collects debris. R-06 Scavenger collects Lgt. Ion Engine. K-01 Serf collects debris. Lgt. Treads destroyed. Imp. Ion Engine severed. R-06 Scavenger collects Lgt. Assault Rifle. R-06 Scavenger collects Lgt. Ion Engine. Critical hit (Burn: +37). Assault Rifle destroyed. K-01 Serf collects debris. Hvy. EM Pulse Gun destroyed. Lgt. Treads severed. U-05 Engineer lays Concrete. K-01 Serf cleans the Terminal. U-05 Engineer lays Concrete. K-01 Serf cleans the Terminal. U-05 Engineer lays Concrete. ECM Suite destroyed. G-34 Mercenary destroyed. K-01 Serf collects debris. Map ----- +----------------------------------------------------+ | ?????????????????# ]] ?????????????????????? | | ?????????????????# ]? ?????????????????????? | | ??????????????????! ???????????????????? | | ??????????????????? ?????????????????? | | ??????????????????? = # ####????????????? | | ???????????????????" " ?????????????? | | ?????????????????+ """ ??????????????? | | ???????????????? # =[ [% ???????????????? | | ?????????????#? [%* +#####??????????? | | ?????????????# " !*%[ #??????????? | | ?????????????# *=!% #??????????? | | ?????????????# # # [*% """#??????????? | | ????????????## [ *%! """#??????????? | | ??????????? [ % k | # """#??????????? | | ?????????????% #"" """???????????? | | ???????????? #?Y """???????????? | | ?????????????# #?? #??????????? | | ?????????????# " #??? #??????????? | | ?????????????# " " #???######??????????? | | ?????????????# "T" ##??????????????????? | | ?????????????# """ T#??????????????????? | | ?????????????# ##??????????????????? | | ?????????????# kY #???????????????????? | | ?????????????## ##### = #???????????????????? | | ??????????????#?????## %l####???????????????????? | | ?????????????????????# *@#?????????????########## | | ?????????????????????# #?????????????# # | | ?????????????????????+ #??????????# ## """ # | | ?????????????????????# #?????###"""""" """ # | | ?????????????????????# #?????# " """ # | | ?????????????????????# ######" " # | | ?????????????????????# " " """ + | | ?????????????????????# [# " """ # | | ?????????????????????# # " """ # | | ??????????????????#######+## + # | | ??????????????????# ! # # % ####+#### | | ??????????????????# ! | | ??????????????????# """ " "### ^ | | ??????????????????# """ # " "??## #### | | ??????????????????# """ # " #???# # | | ??????????????????# # """"""""#####+# | | ??????????????????# # ## """"" # | | ??????????????????# # ## """"" # | | ??????????????############### ## """"" + | | ??????????????# =#?# ## # | | ??????????????# #?# #### #### | | ??????????????# #?# #??# #??? | | ??????????????# """ """ #?# #??########+#####??? | | ??????????????# """ """ #?# #???????# ####### | | ??????????????# """ """ #?# #???????# | +----------------------------------------------------+ Best States ------------- Heat Dissipation 48 Energy Generation 12 Energy Capacity 265 Matter Stores 375 Matter Capacity 450 Sight Range 18 Terrain Scan Density 10 ECM Strength 1 Weapon Shielding 33 Evasion (%) 55 Targeting Accuracy 5 Recoil Reduction 2 Item Schematics ----------------- Grenade Launcher | -10/Materials | Hacked Robot Schematics ------------------ None Fabricated ------------ Nothing Repaired ---------- Aluminum Leg | 25% | -9/Materials Lgt. Cannon | 29% | -9/Materials ECM Suite | 65% | -9/Materials Imp. Ion Engine | 78% | -9/Materials | Corrupted Lgt. Treads | 80% | -9/Materials | Corrupted Lgt. Treads | 70% | -9/Materials | Corrupted Studied --------- None Alien Tech Used ----------------- None Achievements -------------- Loot Pinata Spot Them First Storm Trooper Uninvited Guest Challenges ------------ None Game ------ Seed SalvagePiercingSabre Manual? 0 Play Time 00:44:10 Cumulative 2.3 hours Start 2025.11.25 @ 20:30:24 End 2025.11.25 @ 21:13:02 Sessions 1 Manual Loads 0 Difficulty Rogue Special Mode None Game No. 3 Rogue 1 Adventurer 2 Explorer 0 Win Type - Total 0 Types 0/0/0/0/0/0/0/0/0/0 Lore% 0 Gallery% 3 Achievement% 4 Wizard Run 0 Options --------- Layout 0 ASCII 0 Keyboard 1 Movement Numpad Keybinds 0 Fullscreen 1 Font 18/SmallcapsGlow Map View 76x50 Zoom Use 0% Tactical HUD 0 Map Filters NONE Filters NONE Steam 1 RUN: e350318e-2938-49b0-9c2d-71665a500602